bitfinex/quotes_SOLUSD_20250814
["timestamp","ask_amount","ask_price","bid_price","bid_amount"]
[1755137774221,7.13683664,202.63,202.58,7.13683664]
[1755137774399,0.68,202.62,202.58,7.13683664]
[1755137776013,7.81683664,202.62,202.57,7.13683664]
[1755137776314,13.44946333,202.61,202.56,7.13683664]
[1755137776516,13.44946333,202.61,202.44,0.66]
[1755137776517,5.63262669,202.61,202.57,7.13683664]
[1755137776690,5.63262669,202.61,202.44,0.66]
[1755137776691,150.08,202.6,202.44,0.66]
[1755137776896,150.08,202.59,202.57,7.13683664]
[1755137777124,150.08,202.58,202.55,7.13683664]
[1755137777311,0.68,202.57,202.53,7.13683664]
[1755137777694,149.4,202.56,202.52,7.13683664]
[1755137777914,150.08,202.55,202.52,7.13683664]
[1755137778102,149.4,202.55,202.52,7.13683664]
[1755137778304,0.68,202.54,202.52,7.13683664]
[1755137778508,149.4,202.53,202.52,7.13683664]
[1755137778797,149.4,202.53,202.5,7.13683664]
[1755137778798,149.4,202.52,202.5,7.13683664]
[1755137779008,0.68,202.51,202.5,7.13683664]
[1755137779707,149.4,202.5,202.41,7.13683664]
[1755137780020,150.08,202.49,202.41,7.13683664]
[1755137780321,0.68,202.48,202.41,7.13683664]
[1755137781015,149.4,202.47,202.42,0.66]
[1755137781204,149.4,202.47,202.46,7.13683664]
[1755137781400,5.63262669,202.48,202.46,7.13683664]
[1755137781721,5.63262669,202.48,202.47,7.13683664]
[1755137782129,0.68,202.54,202.47,7.79683664]
[1755137782299,0.68,202.54,202.53,7.13683664]
[1755137782498,0.68,202.56,202.53,7.13683664]
[1755137782717,0.68,202.56,202.55,7.13683664]
[1755137784312,0.68,202.56,202.47,0.66]
[1755137784513,0.68,202.56,202.55,7.13683664]
[1755137785816,7.13683664,202.65,202.55,7.13683664]
[1755137786128,0.68,202.59,202.54,7.13683664]
[1755137786430,0.68,202.58,202.54,7.13683664]
[1755137786609,0.68,202.61,202.54,7.79683664]
[1755137787229,0.68,202.61,202.6,7.13683664]
[1755137791230,0.68,202.61,202.54,7.79683664]
[1755137791417,149.4,202.6,202.54,7.79683664]
[1755137791617,149.4,202.6,202.59,7.13683664]
[1755137791818,0.7,202.6,202.59,7.13683664]
[1755137795919,149.4,202.59,202.54,7.13683664]
[1755137796130,11.25671822,202.8,202.56,7.13683664]
[1755137796131,150.1,202.58,202.56,7.13683664]
[1755137796323,0.7,202.58,202.57,7.13683664]
[1755137796839,0.7,202.61,202.57,7.13683664]
[1755137797042,0.7,202.61,202.6,7.13683664]
[1755137798014,0.7,202.61,202.55,0.69]
[1755137798214,149.4,202.6,202.55,0.69]
[1755137798752,150.1,202.6,202.59,7.13683664]
[1755137798915,149.4,202.6,202.59,7.13683664]
[1755137799417,150.1,202.6,202.53,0.69]
[1755137799618,150.1,202.6,202.41,7.13683664]
[1755137799619,0.7,202.59,202.56,7.13683664]
[1755137800031,150.1,202.58,202.56,7.13683664]
[1755137800222,150.1,202.58,202.41,7.13683664]
[1755137800223,149.4,202.58,202.57,7.13683664]
[1755137800610,150.1,202.58,202.56,7.13683664]
[1755137800811,0.7,202.57,202.56,7.13683664]
[1755137801236,0.7,202.57,202.54,7.13683664]
[1755137801550,0.7,202.56,202.53,7.13683664]
[1755137801743,0.7,202.55,202.53,7.13683664]
[1755137802044,0.7,202.54,202.52,7.13683664]
[1755137802219,149.4,202.53,202.52,7.13683664]
[1755137803022,149.4,202.53,202.49,0.69]
[1755137803219,149.4,202.52,202.51,7.13683664]
[1755137803834,150.1,202.52,202.51,7.13683664]
[1755137804539,149.4,202.51,202.49,7.13683664]
[1755137804719,150.1,202.51,202.48,7.13683664]
[1755137804917,149.4,202.5,202.48,7.13683664]
[1755137805345,149.4,202.5,202.49,7.13683664]
[1755137805522,0.7,202.54,202.49,7.13683664]
[1755137805840,0.7,202.53,202.41,7.13683664]
[1755137806026,149.4,202.52,202.45,0.69]
[1755137806233,7.83683664,202.51,202.46,7.13683664]
[1755137806546,149.4,202.5,202.47,7.13683664]
[1755137806717,149.4,202.49,202.47,7.13683664]
[1755137806917,149.4,202.48,202.47,7.13683664]
[1755137807433,150.1,202.48,202.44,7.13683664]
[1755137807729,0.7,202.47,202.44,7.13683664]
[1755137807931,0.7,202.47,202.42,0.69]
[1755137807932,150.1,202.47,202.43,7.13683664]
[1755137808138,149.4,202.47,202.43,7.13683664]
[1755137808637,149.4,202.47,202.43,7.82683664]
[1755137809446,149.4,202.47,202.44,7.13683664]
[1755137810047,150.1,202.47,202.43,7.82683664]
[1755137810250,149.4,202.46,202.43,7.13683664]
[1755137811123,0.7,202.45,202.41,7.13683664]
[1755137811427,157.23683664,202.44,202.39,7.13683664]
[1755137811647,0.7,202.43,202.39,7.13683664]
[1755137811949,157.25129532,202.42,202.35,0.69]
[1755137813045,7.15129532,202.41,202.35,0.69]
[1755137813349,7.85129532,202.41,202.35,0.69]
[1755137814443,7.15129532,202.41,202.35,0.69]
[1755137815452,103.71668833,202.42,202.35,0.69]
[1755137815634,110.86798365,202.42,202.35,0.69]
[1755137816153,7.15129532,202.41,202.35,0.69]
[1755137816347,110.86798365,202.42,202.35,0.69]
[1755137816965,103.71668833,202.41,202.35,0.69]
[1755137818726,103.84668833,202.41,202.35,0.69]
[1755137819360,103.71668833,202.41,202.35,0.69]
[1755137820437,110.86798365,202.41,202.35,0.69]
[1755137820670,103.71668833,202.41,202.35,0.69]
[1755137821943,103.71668833,202.41,202.22,24.2355678]
[1755137821944,4.4699562,202.36,202.31,0.68]
[1755137822138,4.4699562,202.36,202.16,24.90138376]
[1755137822139,103.71668833,202.35,202.32,0.68]
[1755137822335,103.71668833,202.34,202.29,0.68]
[1755137822535,108.18664453,202.33,202.27,0.68]
[1755137822769,103.71668833,202.32,202.27,0.68]
[1755137822935,4.4699562,202.33,202.27,0.68]
[1755137822936,103.71668833,202.31,202.27,0.68]
[1755137823137,103.71668833,202.3,202.24,0.68]
[1755137824642,103.71668833,202.29,202.24,0.68]
[1755137827364,103.71668833,202.29,202.28,4.47152005]
[1755137827566,103.71668833,202.29,202.28,5.15152005]
[1755137828662,4.47152005,202.38,202.28,5.15152005]
[1755137828844,149.53,202.37,202.33,4.47152005]
[1755137829042,149.4,202.36,202.33,4.47152005]
[1755137830352,149.53,202.36,202.33,4.47152005]
[1755137830964,149.4,202.36,202.33,4.47152005]
[1755137831545,149.53,202.36,202.33,4.47152005]
[1755137831744,149.53,202.36,202.32,4.47152005]
[1755137831954,149.4,202.36,202.34,4.47152005]
[1755137832157,149.4,202.36,202.34,5.15152005]
[1755137832373,149.4,202.36,202.35,4.47152005]
[1755137834079,149.4,202.36,202.34,4.47152005]
[1755137834454,149.4,202.36,202.32,0.68]
[1755137834758,149.4,202.35,202.34,4.47152005]
[1755137835069,4.60152005,202.41,202.34,5.15152005]
[1755137835274,4.60152005,202.41,202.35,4.47152005]
[1755137835953,4.60152005,202.4,202.35,4.47152005]
[1755137836258,4.60152005,202.39,202.31,0.68]
[1755137836866,4.47152005,202.39,202.31,0.68]
[1755137837080,4.47152005,202.4,202.31,0.68]
[1755137837960,0.13,202.41,202.31,0.68]
[1755137838163,4.47152005,202.4,202.31,0.68]
[1755137839679,149.4,202.39,202.31,0.68]
[1755137842774,149.4,202.38,202.31,0.68]
[1755137844278,149.53,202.37,202.31,0.68]
[1755137844483,149.53,202.37,201.89,324.1]
[1755137844484,4.4701102,202.36,202.29,0.68]
[1755137844984,149.53,202.37,202.29,0.68]
[1755137845178,149.4,202.37,202.29,0.68]
[1755137847860,154.0001102,202.37,202.29,0.68]
[1755137848860,149.53,202.37,202.29,0.68]
[1755137849059,154.0001102,202.37,202.29,0.68]
[1755137849275,0.13,202.36,202.29,0.68]
[1755137849486,4.4701102,202.35,202.29,0.68]
[1755137849780,4.4701102,202.54,202.26,0.68]
[1755137849781,4.4701102,202.31,202.26,0.68]
[1755137850082,149.4,202.3,202.24,0.68]
[1755137850264,149.53,202.3,202.24,0.68]
[1755137850760,153.8701102,202.29,202.24,0.68]
[1755137851160,154.0001102,202.29,202.24,0.68]
[1755137851991,4.4701102,202.27,202.21,0.7]
[1755137852294,4.42725371,202.25,202.19,0.7]
[1755137852470,149.4,202.24,202.19,0.7]
[1755137852670,149.4,202.23,202.2,0.7]
[1755137852871,149.4,202.22,202.18,0.7]
[1755137853067,149.4,202.21,202.18,0.7]
[1755137853482,149.4,202.21,202.16,0.7]
[1755137853661,149.4,202.21,202.17,0.7]
[1755137853983,149.4,202.21,202.18,0.7]
[1755137855265,149.4,202.21,202.19,0.7]
[1755137855470,149.4,202.21,202.2,0.7]
[1755137858189,4.4701102,202.27,202.2,0.7]
[1755137858387,4.4701102,202.26,202.2,0.7]
[1755137858690,4.4701102,202.26,201.8,236.2]
[1755137858691,4.4701102,202.25,202.18,0.7]
[1755137859085,4.4701102,202.23,202.16,0.7]
[1755137859290,154.0001102,202.24,202.16,0.7]
[1755137860494,4.4701102,202.22,202.16,0.7]
[1755137860675,4.4701102,202.2,202.14,0.7]
[1755137860872,149.4,202.19,202.14,0.7]
[1755137861188,149.4,202.19,202.01,24.34372386]
[1755137861396,149.4,202.18,202.15,0.7]
[1755137861702,149.4,202.17,202.16,0.7]
[1755137865471,149.34962424,202.17,202.14,0.7]
[1755137865676,149.34962424,202.16,202.15,0.7]
[1755137865884,4.6001102,202.19,202.12,0.7]
[1755137866375,149.4,202.18,202.12,0.7]
[1755137866776,4.6001102,202.19,202.12,0.7]
[1755137866777,153.8701102,202.17,202.12,0.7]
[1755137866998,154.0001102,202.16,202.09,0.7]
[1755137867189,154.0001102,202.15,201.96,24.16273468]
[1755137867381,4.4701102,202.28,201.97,0.7]
[1755137867382,154.0001102,202.14,201.97,0.7]
[1755137867671,4.4701102,202.28,201.97,0.7]
[1755137867672,4.4701102,202.1,201.97,0.7]
[1755137867885,149.53,202.13,201.97,0.7]
[1755137867886,4.4701102,202.09,201.97,0.7]
[1755137868206,4.4701102,202.08,201.97,0.7]
[1755137868578,0.13,202.09,201.97,0.7]
[1755137870284,4.6001102,202.09,201.97,0.7]
[1755137870597,149.4,202.13,201.97,0.7]
[1755137870806,154.0001102,202.13,201.97,0.7]
[1755137872293,4.6001102,202.12,201.97,0.7]
[1755137872498,4.6001102,202.11,201.97,0.7]
[1755137872688,4.4701102,202.08,201.97,0.7]
[1755137872886,4.4701102,202.07,201.97,0.7]
[1755137873281,4.6001102,202.08,201.97,0.7]
[1755137873594,149.4,202.07,201.97,0.7]
[1755137878593,0.1,202.09,201.97,0.7]
[1755137878594,149.4,202.06,201.97,0.7]
[1755137879416,0.1,202.09,201.97,0.7]
[1755137879417,149.4,202.05,201.97,0.7]
[1755137883807,149.4,202.05,201.97,25.10912399]
[1755137883992,149.4,202.05,201.97,0.7]
[1755137884194,149.4,202.05,201.98,0.71]
[1755137884790,149.4,202.04,201.98,0.71]
[1755137885016,149.4,202.03,201.98,0.71]
[1755137889717,149.4,202.02,201.98,25.03582781]
[1755137890024,0.13,202.14,202.0,24.90488099]
[1755137890221,122.4456649,202.01,201.72,24.40831127]
[1755137890416,0.13,202.14,201.72,258.30831127]
[1755137890625,149.4,202.13,201.72,258.30831127]
[1755137890921,149.4,202.12,201.74,24.26919265]
[1755137891123,149.4,202.12,201.75,0.71]
[1755137891423,149.4,202.12,201.75,234.61]
[1755137891609,149.4,202.12,201.77,24.63332649]
[1755137891921,0.13,202.19,201.79,24.33671108]
[1755137892128,0.13,202.18,201.81,24.39096098]
[1755137892496,0.13,202.18,201.83,24.49315157]
[1755137892702,0.13,202.2,201.85,24.8964411]
[1755137892903,0.13,202.2,201.86,0.71]
[1755137893107,7.30201805,202.2,201.87,24.27068847]
[1755137893323,7.30201805,202.19,201.88,0.71]
[1755137893527,7.17201805,202.18,201.89,24.76555002]
[1755137893710,0.13,202.17,201.91,24.69331547]
[1755137893912,0.13,202.17,201.93,24.58173972]
[1755137894224,0.13,202.17,201.94,0.71]
[1755137894399,7.17201805,202.15,201.95,24.05798419]
[1755137894600,7.30201805,202.14,201.97,24.40912399]
[1755137894820,7.17201805,202.12,201.98,0.71]
[1755137895020,0.13,202.11,201.98,0.71]
[1755137895414,7.17201805,202.1,201.98,0.71]
[1755137895626,0.13,202.09,201.98,0.71]
[1755137902126,149.4,202.08,201.98,0.71]
[1755137902527,0.13,202.07,201.98,0.71]
[1755137903026,149.4,202.06,201.96,0.71]
[1755137903329,0.13,202.05,201.96,0.71]
[1755137905326,0.13,202.05,201.94,0.71]
[1755137905631,4.48296768,202.03,201.92,0.71]
[1755137905928,0.13,202.02,201.92,0.71]
[1755137907242,4.48296768,202.01,201.7,24.73330869]
[1755137907422,4.48296768,202.01,201.9,0.71]
[1755137907423,0.13,202.0,201.9,0.71]
[1755137907727,4.48296768,201.99,201.88,0.71]
[1755137907932,4.61296768,201.98,201.88,0.71]
[1755137908229,149.53,201.97,201.88,0.71]
[1755137908528,0.13,201.96,201.88,0.71]
[1755137909330,149.4,201.97,201.88,0.71]
[1755137911512,149.4,201.96,201.88,0.71]
[1755137912307,0.1,201.95,201.88,0.71]
[1755137912509,0.1,201.95,201.66,24.59425445]
[1755137912713,149.4,201.94,201.85,0.71]
[1755137912927,149.4,201.93,201.85,0.71]
[1755137916338,0.13,201.92,201.85,0.71]
[1755137916835,3.61296768,201.96,201.85,0.71]
[1755137917009,149.4,201.95,201.85,0.71]
[1755137920414,4.48296768,202.05,201.85,0.71]
[1755137920648,4.48296768,202.01,201.85,0.71]
[1755137920848,4.48296768,202.0,201.85,0.71]
[1755137921152,4.48296768,202.15,201.85,0.71]
[1755137921153,4.48296768,201.98,201.85,0.71]
[1755137921521,4.48296768,201.96,201.85,0.71]
[1755137921714,4.48296768,201.97,201.85,0.71]
[1755137921911,149.4,201.96,201.85,0.71]
[1755137922426,149.4,201.95,201.85,0.71]
[1755137922627,149.4,201.94,201.85,0.71]
[1755137922820,149.4,201.93,201.85,0.71]
[1755137923019,149.4,201.92,201.85,0.71]
[1755137923524,149.4,201.91,201.85,0.71]
[1755137924129,149.4,201.91,201.83,0.71]
[1755137924331,149.4,201.9,201.83,0.71]
[1755137924541,149.4,201.9,201.81,0.71]
[1755137924922,149.4,201.89,201.81,0.71]
[1755137927059,149.4,201.88,201.79,0.71]
[1755137936553,4.48296768,201.92,201.79,0.71]
[1755137936761,149.4,202.0,201.79,0.71]
[1755137936936,4.48296768,201.9,201.79,0.71]
[1755137937333,149.4,201.99,201.79,0.71]
[1755137937546,4.48296768,201.91,201.79,0.71]
[1755137938568,149.4,201.98,201.79,0.71]
[1755137938779,4.48296768,201.94,201.79,0.71]
[1755137939279,4.48296768,201.95,201.79,0.71]
[1755137939456,149.4,201.98,201.79,0.71]
[1755137939654,4.48296768,201.95,201.79,0.71]
[1755137939859,149.4,201.98,201.79,0.71]
[1755137940058,4.48296768,201.96,201.79,0.71]
[1755137940263,4.48296768,201.95,201.79,0.71]
[1755137941361,149.4,201.98,201.79,0.71]
[1755137942065,153.88296768,201.98,201.79,25.04671108]
[1755137942370,149.4,201.98,201.79,25.04671108]
[1755137942576,149.4,201.98,201.81,24.39096098]
[1755137942776,149.4,201.98,201.82,0.7]
[1755137942980,149.4,202.14,201.82,24.85641415]
[1755137943283,3.67141414,202.13,201.84,24.02198392]
[1755137943453,4.48296768,202.06,201.84,24.02198392]
[1755137943654,4.48296768,202.06,201.85,25.5964411]
[1755137943876,4.48296768,202.07,201.87,24.27068847]
[1755137944082,4.48296768,202.07,201.88,0.7]
[1755137944275,4.48296768,202.07,201.89,24.76555002]
[1755137944577,4.48296768,202.07,201.88,0.7]
[1755137944578,4.48296768,202.08,201.9,24.95090963]
[1755137944802,4.48296768,202.08,201.91,0.7]
[1755137944971,4.48296768,202.09,201.91,25.39331547]
[1755137945184,4.48296768,202.1,201.92,0.7]
[1755137945379,149.4,202.27,201.92,24.82436238]
[1755137945561,4.48296768,202.15,201.92,24.82436238]
[1755137945905,4.48296768,202.15,201.94,24.32638506]
[1755137946062,4.48296768,202.16,201.95,0.7]
[1755137946267,3.67435294,202.15,201.95,0.7]
[1755137946561,4.48296768,202.28,201.96,24.16273468]
[1755137946895,4.48296768,202.28,201.53,87.9]
[1755137946896,3.67449045,202.27,201.98,24.32582781]
[1755137947064,4.48296768,202.27,202.0,24.90488099]
[1755137947375,4.48296768,202.24,202.02,24.69380565]
[1755137947579,4.48296768,202.24,202.03,0.7]
[1755137947779,4.48296768,202.26,202.04,24.3361148]
[1755137947975,4.48296768,202.24,202.05,0.7]
[1755137948294,4.48296768,202.24,202.06,24.62221476]
[1755137948584,4.48296768,202.24,202.07,25.18520015]
[1755137948785,4.4773658,202.24,202.09,24.11880547]
[1755137949089,4.4773658,202.24,202.1,25.14505966]
[1755137949287,7.1637867,202.24,202.11,0.7]
[1755137949662,7.1637867,202.23,202.11,0.7]
[1755137949863,7.1637867,202.21,202.11,0.7]
[1755137950289,7.1637867,202.28,202.09,0.7]
[1755137950489,7.1637867,202.19,202.09,0.7]
[1755137950985,7.1637867,202.15,202.06,0.7]
[1755137951580,7.1637867,202.13,202.03,0.7]
[1755137951783,7.1637867,202.12,202.03,0.7]
[1755137951969,7.1637867,202.1,202.01,0.7]
[1755137952588,7.1637867,202.28,201.53,87.9]
[1755137952589,7.1637867,202.08,201.54,30.17304028]
[1755137952772,7.1637867,202.09,201.98,0.7]
[1755137953086,7.1637867,202.07,201.98,0.7]
[1755137953287,7.1637867,202.15,201.53,87.9]
[1755137953288,7.1637867,202.06,201.9,24.25090963]
[1755137953487,7.1637867,202.06,201.96,0.7]
[1755137953684,7.1637867,202.05,201.96,0.7]
[1755137953990,7.1637867,202.15,201.53,87.9]
[1755137953991,7.1637867,202.01,201.93,0.7]
[1755137954372,7.1637867,202.15,201.93,0.7]
[1755137954373,7.1637867,202.02,201.93,0.7]
[1755137954577,7.1637867,202.01,201.93,0.7]
[1755137955081,7.1637867,202.0,201.93,0.7]
[1755137955488,7.1637867,201.99,201.91,0.7]
[1755137956692,7.1637867,202.0,201.91,0.7]
[1755137958593,7.1637867,202.02,201.91,0.7]
[1755137958979,7.1637867,202.05,201.91,0.7]
[1755137959300,7.1637867,202.06,201.91,0.7]
[1755137959477,7.1637867,202.05,201.91,0.7]
[1755137959874,7.1637867,202.06,201.91,0.7]
[1755137961094,7.1637867,202.07,201.91,0.7]
[1755137962600,7.1637867,202.1,201.92,24.12436238]
[1755137962803,7.1637867,202.11,201.93,25.28173972]
[1755137962986,7.1637867,202.1,201.94,0.7]
[1755137963483,7.1637867,202.09,201.94,0.7]
[1755137963688,7.1637867,202.1,201.94,0.7]
[1755137964387,7.1637867,202.1,202.09,35.54]
[1755137964997,7.1637867,202.13,202.02,0.7]
[1755137966489,149.4,202.26,202.02,0.7]
[1755137966693,7.1637867,202.14,202.02,0.7]
[1755137967205,7.1637867,202.15,202.02,0.7]
[1755137967508,7.1637867,202.15,202.03,35.14]
[1755137967807,7.1637867,202.15,202.04,0.7]
[1755137969307,7.1637867,202.16,202.04,0.7]
[1755137970920,7.1637867,202.19,202.04,0.7]
[1755137971225,7.1637867,202.16,202.04,0.7]
[1755137972291,7.1637867,202.18,202.04,0.7]
[1755137974112,7.1637867,202.2,202.04,0.7]
[1755137975504,7.1637867,202.41,202.04,0.7]
[1755137975505,7.1637867,202.22,202.04,25.0361148]
[1755137975780,7.1637867,202.19,202.05,0.68]
[1755137976189,149.4,202.27,202.05,0.68]
[1755137976190,7.1637867,202.18,202.05,0.68]
[1755137976920,149.4,202.27,202.05,0.68]
[1755137976921,7.16818085,202.19,202.05,0.68]
[1755137977119,4.47974038,202.19,202.05,0.68]
[1755137977994,4.47974038,202.22,202.05,0.68]
[1755137978194,4.47974038,202.21,202.05,0.68]
[1755137978519,149.4,202.27,202.05,0.68]
[1755137979022,4.47974038,202.22,202.05,0.68]
[1755137979195,149.4,202.27,202.05,0.68]
[1755137979196,4.47974038,202.24,202.05,0.68]
[1755137979390,153.87974038,202.27,202.05,88.58]
[1755137979591,4.47974038,202.26,202.06,0.68]
[1755137980007,4.47974038,202.25,202.06,0.68]
[1755137980214,4.47974038,202.22,202.06,0.68]
[1755137980401,4.47974038,202.22,202.06,88.58]
[1755137980602,4.47974038,202.22,202.07,0.68]
[1755137980802,4.47974038,202.23,202.07,0.68]
[1755137981310,4.47974038,202.17,202.07,0.68]
[1755137981697,4.47974038,202.16,202.07,0.68]
[1755137981997,4.47974038,202.15,202.07,0.68]
[1755137982412,4.47974038,202.16,202.07,0.68]
[1755137982593,149.4,202.27,202.07,0.68]
[1755137982594,4.47974038,202.17,202.07,0.68]
[1755137982789,4.48054848,202.17,202.07,0.68]
[1755137983009,4.48054848,202.16,202.07,0.68]
[1755137983397,7.17019566,202.14,202.07,0.68]
[1755137983723,7.14063784,202.16,202.07,0.68]
[1755137985422,7.17019566,202.17,202.07,0.68]
[1755137986497,7.17019566,202.16,202.07,0.68]
[1755137989122,7.17019566,202.15,202.07,0.68]
[1755137990300,7.17019566,202.11,202.05,0.68]
[1755137991019,7.17019566,202.12,202.05,0.68]
[1755137991406,7.17019566,202.11,201.98,24.32582781]
[1755137991736,7.17019566,202.11,202.02,0.68]
[1755137992503,7.17019566,202.1,202.02,0.68]
[1755137992724,132.2,202.21,202.02,0.68]
[1755137992921,7.17019566,202.1,202.02,0.68]
[1755137993334,132.2,202.2,202.02,0.68]
[1755137993619,7.17019566,202.12,202.02,0.68]
[1755137996929,132.2,202.19,202.02,0.68]
[1755137996930,7.17019566,202.14,202.02,0.68]
[1755137997322,7.17019566,202.13,202.02,0.68]
[1755137997717,132.2,202.19,202.02,0.68]
[1755137997918,7.17019566,202.14,202.02,0.68]
[1755137998828,7.17019566,202.15,202.02,0.68]
[1755138000129,7.17019566,202.12,202.02,0.68]
[1755138000432,7.17019566,202.1,202.02,0.68]
[1755138000733,7.17019566,202.07,202.01,0.68]
[1755138001112,132.2,202.14,202.01,0.68]
[1755138001315,7.17019566,202.09,202.01,0.68]
[1755138001511,7.16213152,202.09,202.01,0.68]
[1755138002532,132.2,202.14,202.01,0.68]
[1755138003809,139.37019566,202.14,202.01,0.68]
[1755138004006,7.17019566,202.1,202.01,0.68]
[1755138004224,7.17019566,202.08,202.01,0.68]
[1755138004625,132.2,202.14,202.01,0.68]
[1755138005007,132.2,202.14,201.11,44.26972186]
[1755138005008,7.17514961,202.02,201.65,24.96065306]
[1755138005213,4.49109125,202.02,201.83,0.68]
[1755138005514,4.49109125,202.15,201.83,0.68]
[1755138005710,4.49109125,201.99,201.83,0.68]
[1755138005934,4.49109125,201.98,201.83,0.68]
[1755138007036,4.49109125,201.9,201.83,0.68]
[1755138007224,4.49109125,201.91,201.83,0.68]
[1755138008020,4.49109125,201.92,201.83,0.68]
[1755138008239,4.49109125,201.91,201.83,0.68]
[1755138010026,4.49109125,202.02,201.83,0.68]
[1755138010348,4.49109125,201.91,201.83,0.68]
[1755138012440,4.49109125,202.02,201.83,0.68]
[1755138012652,4.49109125,201.89,201.83,0.68]
[1755138012823,4.49109125,201.89,201.79,2.57829631]
[1755138012824,4.49109125,201.88,201.8,0.68]
[1755138013025,4.49109125,201.87,201.8,0.68]
[1755138013218,4.49109125,201.84,201.77,0.68]
[1755138013540,4.49109125,201.79,201.74,0.68]
[1755138013746,4.49109125,201.79,201.69,2.57423969]
[1755138014048,4.49109125,201.77,201.7,0.68]
[1755138014349,4.49109125,201.77,201.59,24.39562911]
[1755138014350,4.49109125,201.73,201.67,0.68]
[1755138014652,4.49109125,201.68,201.62,2.57648426]
[1755138014949,4.49109125,201.63,201.6,2.58051734]
[1755138015237,4.49109125,201.61,201.55,0.68]
[1755138015423,4.49109125,201.65,201.55,0.68]
[1755138015622,4.49109125,201.61,201.55,0.68]
[1755138016337,4.49109125,201.59,201.52,0.68]
[1755138016535,4.49109125,201.58,201.52,0.68]
[1755138016742,4.50662295,201.6,201.52,0.68]
[1755138016946,4.50662295,201.59,201.52,0.68]
[1755138017129,7.21224636,201.55,201.49,0.68]
[1755138017325,7.21224636,201.63,200.91,81.08763506]
[1755138017326,7.21224636,201.5,201.21,24.00332607]
[1755138017541,7.21224636,201.5,200.91,0.18763506]
[1755138017542,7.21224636,201.5,201.44,0.68]
[1755138017843,7.21224636,201.51,201.44,0.68]
[1755138018439,7.21224636,201.76,201.44,0.68]
[1755138018627,7.21224636,201.56,201.44,0.68]
[1755138018821,7.21224636,201.76,201.44,0.68]
[1755138019148,7.21224636,201.58,201.44,0.68]
[1755138019333,7.21224636,201.56,201.44,0.68]
[1755138019533,7.21224636,201.54,201.44,0.68]
[1755138019948,7.21224636,201.55,201.44,0.68]
[1755138020246,7.21224636,201.54,201.44,0.68]
[1755138020542,7.21224636,201.76,201.44,0.68]
[1755138020842,7.21224636,201.55,201.44,0.68]
[1755138021024,7.21224636,201.63,201.44,0.68]
[1755138021025,7.21224636,201.54,201.44,0.68]
[1755138021420,7.21224636,201.63,201.44,0.68]
[1755138021421,7.21224636,201.53,201.44,0.68]
[1755138021946,7.21224636,201.52,201.44,0.68]
[1755138022335,7.21224636,201.5,201.44,0.68]
[1755138022537,7.21224636,201.63,201.44,0.68]
[1755138022846,7.21224636,201.58,201.44,0.68]
[1755138023142,7.21224636,201.76,201.44,0.68]
[1755138023527,7.21224636,201.59,201.44,0.68]
[1755138024340,7.21224636,201.53,201.44,0.68]
[1755138024544,7.21224636,201.63,201.44,0.68]
[1755138024751,7.21224636,201.53,201.44,0.68]
[1755138025125,7.21224636,201.63,201.44,0.68]
[1755138025332,7.21224636,201.53,201.44,0.68]
[1755138025529,7.21224636,201.63,201.44,0.68]
[1755138025530,7.21224636,201.52,201.44,0.68]
[1755138025747,7.21224636,201.63,201.44,0.68]